fUST/lending_fUST_20250626
["ID","MTS","AMOUNT","RATE_DAILY","PERIOD"]
[367826908,1750937450729,-500.0,0.00018468,2]
[367826909,1750937450739,-1000.0,0.00018493,2]
[367826910,1750937450748,-331.18375273,0.00018493,2]
[367826911,1750937450758,-1000.0,0.00018493,2]
[367826912,1750937450768,-1000.0,0.00018503,2]
[367826913,1750937450778,-507.27257125,0.00018522,2]
[367826914,1750937450787,-1000.0,0.00018525,2]
[367826915,1750937450797,-1000.0,0.00018525,2]
[367826916,1750937450806,-500.0,0.00018525,2]
[367826917,1750937450816,-500.0,0.00018525,2]
[367826918,1750937450826,-1000.0,0.00018569,2]
[367826919,1750937450835,-482.34571679,0.00018569,2]
[367826920,1750937450845,-580.8694489,0.00018569,2]
[367826921,1750937450854,-1000.0,0.00018569,2]
[367826922,1750937450864,-503.61778586,0.00018569,2]
[367826923,1750937450873,-501.8969566,0.00018569,2]
[367826924,1750937450883,-1004.53964016,0.00018569,2]
[367826925,1750937450892,-1000.0,0.00018569,2]
[367826926,1750937450901,-1000.0,0.00018569,2]
[367826927,1750937450911,-151.0,0.000186,2]
[367826928,1750937450921,-500.0,0.00018615,2]
[367826929,1750937450930,-420.46390594,0.00018629,2]
[367826930,1750937450939,-500.0,0.00018629,2]
[367826931,1750937450949,-500.0,0.00018629,2]
[367826932,1750937450958,-500.0,0.00018629,2]
[367826933,1750937450968,-500.0,0.00018629,2]
[367826934,1750937450977,-500.0,0.00018629,2]
[367826935,1750937450987,-500.0,0.00018629,2]
[367826936,1750937451000,-500.0,0.00018629,2]
[367826937,1750937451010,-500.0,0.00018629,2]
[367826938,1750937451019,-500.0,0.00018629,2]
[367826939,1750937451028,-500.0,0.00018629,2]
[367826940,1750937451038,-500.0,0.00018629,2]
[367826941,1750937451047,-500.0,0.00018629,2]
[367826942,1750937451057,-500.0,0.00018629,2]
[367826943,1750937451067,-500.0,0.00018629,2]
[367826944,1750937451078,-500.0,0.00018629,2]
[367826945,1750937451088,-500.0,0.00018629,2]
[367826946,1750937451098,-500.0,0.00018629,2]
[367826947,1750937451107,-452.8969523,0.00018629,2]
[367826948,1750937451116,-500.0,0.00018629,2]
[367826949,1750937451126,-486.45,0.00018629,2]
[367826950,1750937451136,-500.0,0.00018629,2]
[367826951,1750937451145,-500.0,0.00018629,2]
[367826952,1750937451154,-500.0,0.00018629,2]
[367826953,1750937451163,-500.0,0.00018629,2]
[367826954,1750937451173,-500.0,0.00018629,2]
[367826955,1750937451183,-500.0,0.00018629,2]
[367826956,1750937451192,-500.0,0.00018629,2]
[367826957,1750937451202,-500.0,0.00018629,2]
[367826958,1750937451212,-500.0,0.00018629,2]
[367826959,1750937451221,-500.0,0.00018629,2]
[367826960,1750937451231,-500.0,0.00018629,2]
[367826961,1750937451240,-500.0,0.00018629,2]
[367826962,1750937451249,-500.0,0.00018629,2]
[367826963,1750937451259,-500.0,0.00018629,2]
[367826964,1750937451269,-500.0,0.00018629,2]
[367826965,1750937451278,-500.0,0.00018629,2]
[367826966,1750937451288,-500.0,0.00018629,2]
[367826967,1750937451298,-500.0,0.00018629,2]
[367826968,1750937451308,-500.0,0.00018629,2]
[367826969,1750937451319,-500.0,0.00018629,2]
[367826970,1750937451328,-500.0,0.00018629,2]
[367826971,1750937451338,-500.0,0.00018629,2]
[367826972,1750937451347,-500.0,0.00018629,2]
[367826973,1750937451357,-500.0,0.00018629,2]
[367826974,1750937451366,-500.0,0.00018629,2]
[367826975,1750937451376,-500.0,0.00018629,2]
[367826976,1750937451385,-500.0,0.00018629,2]
[367826977,1750937451395,-500.0,0.00018629,2]
[367826978,1750937451406,-399.23408471,0.00018629,2]
[367826979,1750937451415,-500.0,0.00018629,2]
[367826980,1750937451425,-500.0,0.00018629,2]
[367826981,1750937451434,-500.0,0.00018629,2]
[367826982,1750937451444,-500.0,0.00018629,2]
[367826983,1750937451453,-500.0,0.00018629,2]
[367826984,1750937451463,-500.0,0.00018629,2]
[367826985,1750937451481,-500.0,0.00018629,2]
[367826986,1750937451492,-500.0,0.00018629,2]
[367826987,1750937451504,-500.0,0.00018629,2]
[367826988,1750937451514,-500.0,0.00018629,2]
[367826989,1750937451524,-500.0,0.00018629,2]
[367826990,1750937451534,-500.0,0.00018629,2]
[367826991,1750937451543,-500.0,0.00018629,2]
[367826992,1750937451553,-500.0,0.00018629,2]
[367826993,1750937451563,-500.0,0.00018629,2]
[367826994,1750937451572,-500.0,0.00018629,2]
[367826995,1750937451582,-500.0,0.00018629,2]
[367826996,1750937451591,-500.0,0.00018629,2]
[367826997,1750937451601,-500.0,0.00018629,2]
[367826998,1750937451612,-500.0,0.00018629,2]
[367826999,1750937451622,-500.0,0.00018629,2]
[367827000,1750937451632,-500.0,0.00018629,2]
[367827001,1750937451642,-500.0,0.00018629,2]
[367827002,1750937451652,-500.0,0.00018629,2]
[367827003,1750937451662,-500.0,0.00018629,2]
[367827004,1750937451672,-500.0,0.00018629,2]
[367827005,1750937451682,-500.0,0.00018629,2]
[367827006,1750937451692,-500.0,0.00018629,2]
[367827007,1750937451702,-500.0,0.00018629,2]
[367827008,1750937451712,-500.0,0.00018629,2]
[367827009,1750937451722,-500.0,0.00018629,2]
[367827010,1750937451732,-500.0,0.00018629,2]
[367827011,1750937451742,-500.0,0.00018629,2]
[367827012,1750937451753,-500.0,0.00018629,2]
[367827013,1750937451763,-500.0,0.00018629,2]
[367827014,1750937451773,-500.0,0.00018629,2]
[367827015,1750937451783,-500.0,0.00018629,2]
[367827016,1750937451793,-500.0,0.00018629,2]
[367827017,1750937451803,-500.0,0.00018629,2]
[367827018,1750937451813,-407.41409665,0.00018629,2]
[367827019,1750937451823,-500.0,0.00018629,2]
[367827020,1750937451833,-500.0,0.00018629,2]
[367827021,1750937451843,-500.0,0.00018629,2]
[367827022,1750937451852,-500.0,0.00018629,2]
[367827023,1750937451861,-500.0,0.00018629,2]
[367827024,1750937451871,-500.0,0.00018629,2]
[367827025,1750937451880,-500.0,0.00018629,2]
[367827026,1750937451890,-500.0,0.00018629,2]
[367827027,1750937451899,-500.0,0.00018629,2]
[367827028,1750937451909,-500.0,0.00018629,2]
[367827029,1750937451919,-500.0,0.00018629,2]
[367827030,1750937451929,-500.0,0.00018629,2]
[367827031,1750937451938,-500.0,0.00018629,2]
[367827032,1750937451947,-460.0,0.0001863,2]
[367827033,1750937451957,-460.0,0.0001863,2]
[367827034,1750937451967,-460.0,0.0001863,2]
[367827035,1750937451977,-460.0,0.0001863,2]
[367827036,1750937451986,-460.0,0.0001863,2]
[367827037,1750937451999,-460.0,0.0001863,2]
[367827038,1750937452010,-475.68,0.0001863,2]
[367827039,1750937452019,-460.0,0.0001863,2]
[367827040,1750937452028,-460.0,0.0001863,2]
[367827041,1750937452038,-799.04,0.0001863,2]
[367827042,1750937452048,-460.0,0.0001863,2]
[367827043,1750937452057,-460.0,0.0001863,2]
[367827044,1750937452067,-460.0,0.0001863,2]
[367827045,1750937452077,-460.0,0.0001863,2]
[367827046,1750937452087,-460.0,0.0001863,2]
[367827047,1750937452096,-460.5,0.0001863,2]
[367827048,1750937452107,-514.6,0.0001863,2]
[367827049,1750937452119,-460.0,0.0001863,2]
[367827050,1750937452129,-460.0,0.0001863,2]
[367827051,1750937452138,-460.0,0.0001863,2]
[367827052,1750937452148,-515.47342929,0.0001863,2]
[367827053,1750937452157,-460.0,0.0001863,2]
[367827054,1750937452167,-460.0,0.0001863,2]
[367827055,1750937452177,-460.0,0.0001863,2]
[367827056,1750937452186,-1825.69,0.0001863,2]
[367827057,1750937452196,-460.0,0.0001863,2]
[367827058,1750937452205,-634.71,0.0001863,2]
[367827059,1750937452215,-460.0,0.0001863,2]
[367827060,1750937452225,-460.0,0.0001863,2]
[367827061,1750937452234,-560.37,0.0001863,2]
[367827062,1750937452243,-460.0,0.0001863,2]
[367827063,1750937452253,-532.05,0.0001863,2]
[367827064,1750937452262,-853.49,0.0001863,2]
[367827065,1750937452272,-749.37,0.0001863,2]
[367827066,1750937452281,-750.66,0.0001863,2]
[367827067,1750937452368,-460.0,0.0001863,2]
[367827068,1750937452378,-493.63,0.0001863,2]
[367827069,1750937452387,-2230.64,0.0001863,2]
[367827070,1750937452396,-460.0,0.0001863,2]
[367827071,1750937452405,-1483.5,0.0001863,2]
[367827072,1750937452416,-631.3,0.0001863,2]
[367827073,1750937452425,-555.27,0.0001863,2]
[367827074,1750937452435,-603.69,0.0001863,2]
[367827075,1750937452444,-1037.78,0.0001863,2]
[367827076,1750937452454,-480.66,0.0001863,2]
[367827077,1750937452463,-460.0,0.0001863,2]
[367827078,1750937452473,-460.0,0.0001863,2]
[367827079,1750937452483,-1376.23,0.0001863,2]
[367827080,1750937452493,-460.0,0.0001863,2]
[367827081,1750937452502,-1547.65,0.0001863,2]
[367827082,1750937452515,-1342.13,0.0001863,2]
[367827083,1750937452524,-460.0,0.0001863,2]
[367827084,1750937452534,-460.0,0.0001863,2]
[367827085,1750937452543,-460.0,0.0001863,2]
[367827086,1750937452553,-460.0,0.0001863,2]
[367827087,1750937452564,-666.66,0.0001863,2]
[367827088,1750937452573,-460.0,0.0001863,2]
[367827089,1750937452583,-460.0,0.0001863,2]
[367827090,1750937452592,-1051.88,0.0001863,2]
[367827091,1750937452601,-584.27,0.0001863,2]
[367827092,1750937452610,-1471.85,0.0001863,2]
[367827093,1750937452620,-1058.47,0.0001863,2]
[367827094,1750937452630,-3674.9,0.0001863,2]
[367827095,1750937452639,-460.0,0.0001863,2]
[367827096,1750937452648,-488.35,0.0001863,2]
[367827097,1750937452660,-460.0,0.0001863,2]
[367827098,1750937452669,-460.0,0.0001863,2]
[367827099,1750937452678,-578.02809831,0.0001863,2]
[367827100,1750937452688,-1781.52,0.0001863,2]
[367827101,1750937452698,-765.93,0.0001863,2]
[367827102,1750937452707,-1905.24,0.0001863,2]
[367827103,1750937452716,-1426.6,0.0001863,2]
[367827104,1750937452726,-460.0,0.0001863,2]
[367827105,1750937452735,-845.79,0.0001863,2]
[367827106,1750937452744,-552.93,0.0001863,2]
[367827107,1750937452754,-460.0,0.0001863,2]
[367827108,1750937452763,-3344.72,0.0001863,2]
[367827109,1750937452773,-460.0,0.0001863,2]
[367827110,1750937452782,-460.0,0.0001863,2]
[367827111,1750937452791,-460.0,0.0001863,2]
[367827112,1750937452800,-460.0,0.0001863,2]
[367827113,1750937452809,-460.0,0.0001863,2]
[367827114,1750937452819,-725.47,0.0001863,2]
[367827115,1750937452828,-681.48,0.0001863,2]
[367827116,1750937452837,-460.0,0.0001863,2]
[367827117,1750937452846,-460.0,0.0001863,2]
[367827118,1750937452855,-1451.19,0.0001863,2]
[367827119,1750937452865,-2357.2,0.0001863,2]
[367827120,1750937452874,-504.70859062,0.00018684,2]
[367827121,1750937452884,-2098.61804964,0.00018728,2]
[367827122,1750937452894,-460.0,0.0001875,2]
[367827123,1750937452903,-460.0,0.00018904,2]
[367827124,1750937452913,-460.0,0.00018904,2]
[367827125,1750937452922,-460.0,0.00018904,2]
[367827126,1750937452931,-460.0,0.00018904,2]
[367827127,1750937452941,-460.0,0.00018904,2]
[367827128,1750937452950,-460.0,0.00018904,2]
[367827129,1750937452959,-475.68,0.00018904,2]
[367827130,1750937452968,-460.0,0.00018904,2]
[367827131,1750937452977,-460.0,0.00018904,2]
[367827132,1750937452986,-799.04,0.00018904,2]
[367827133,1750937452999,-460.0,0.00018904,2]
[367827134,1750937453008,-460.0,0.00018904,2]
[367827135,1750937453017,-599.63577361,0.00018904,2]
[367827136,1750937453027,-460.0,0.00018904,2]
[367827137,1750937453037,-460.0,0.00018904,2]
[367827138,1750937453046,-460.5,0.00018904,2]
[367827139,1750937453055,-514.6,0.00018904,2]
[367827140,1750937453065,-460.0,0.00018904,2]
[367827141,1750937453076,-460.0,0.00018904,2]
[367827142,1750937453085,-460.0,0.00018904,2]
[367827143,1750937453094,-460.0,0.00018904,2]
[367827144,1750937453103,-460.0,0.00018904,2]
[367827145,1750937453112,-460.0,0.00018904,2]
[367827146,1750937453122,-1825.69,0.00018904,2]
[367827147,1750937453131,-460.0,0.00018904,2]
[367827148,1750937453140,-634.71,0.00018904,2]
[367827149,1750937453149,-460.0,0.00018904,2]
[367827150,1750937453158,-460.0,0.00018904,2]
[367827151,1750937453167,-560.37,0.00018904,2]
[367827152,1750937453177,-460.0,0.00018904,2]
[367827153,1750937453186,-532.05,0.00018904,2]
[367827154,1750937453195,-853.49,0.00018904,2]
[367827155,1750937453204,-749.37,0.00018904,2]
[367827156,1750937453214,-750.66,0.00018904,2]
[367827157,1750937453223,-460.0,0.00018904,2]
[367827158,1750937453232,-493.63,0.00018904,2]
[367827159,1750937453241,-2230.64,0.00018904,2]
[367827160,1750937453250,-382.28871113,0.00018904,2]
[367827161,1750937453259,-1483.5,0.00018904,2]
[367827162,1750937453268,-631.3,0.00018904,2]
[367827163,1750937453277,-555.27,0.00018904,2]
[367827164,1750937453286,-603.69,0.00018904,2]
[367827165,1750937453296,-1037.78,0.00018904,2]
[367827166,1750937453305,-480.66,0.00018904,2]
[367827167,1750937453314,-460.0,0.00018904,2]
[367827168,1750937453323,-460.0,0.00018904,2]
[367827169,1750937453332,-1376.23,0.00018904,2]
[367827170,1750937453342,-460.0,0.00018904,2]
[367827171,1750937453351,-1547.65,0.00018904,2]
[367827172,1750937453360,-1342.13,0.00018904,2]
[367827173,1750937453369,-460.0,0.00018904,2]
[367827174,1750937453379,-460.0,0.00018904,2]
[367827175,1750937453388,-460.0,0.00018904,2]
[367827176,1750937453399,-460.0,0.00018904,2]
[367827177,1750937453408,-666.66,0.00018904,2]
[367827178,1750937453417,-460.0,0.00018904,2]
[367827179,1750937453427,-460.0,0.00018904,2]
[367827180,1750937453436,-1051.88,0.00018904,2]
[367827181,1750937453446,-584.27,0.00018904,2]
[367827182,1750937453455,-1471.85,0.00018904,2]
[367827183,1750937453465,-1058.47,0.00018904,2]
[367827184,1750937453475,-3674.9,0.00018904,2]
[367827185,1750937453485,-460.0,0.00018904,2]
[367827186,1750937453495,-488.35,0.00018904,2]
[367827187,1750937453504,-460.0,0.00018904,2]
[367827188,1750937453514,-460.0,0.00018904,2]
[367827189,1750937453523,-1781.52,0.00018904,2]
[367827190,1750937453532,-765.93,0.00018904,2]
[367827191,1750937453541,-1905.24,0.00018904,2]
[367827192,1750937453551,-1426.6,0.00018904,2]
[367827193,1750937453560,-460.0,0.00018904,2]
[367827194,1750937453569,-845.79,0.00018904,2]
[367827195,1750937453578,-552.93,0.00018904,2]
[367827196,1750937453587,-354.56730608,0.00018904,2]
[367827197,1750937453597,-3344.72,0.00018904,2]
[367827198,1750937453606,-460.0,0.00018904,2]
[367827199,1750937453615,-460.0,0.00018904,2]
[367827200,1750937453624,-460.0,0.00018904,2]
[367827201,1750937453634,-460.0,0.00018904,2]
[367827202,1750937453643,-460.0,0.00018904,2]
[367827203,1750937453653,-725.47,0.00018904,2]
[367827204,1750937453663,-460.0,0.00018904,2]
[367827205,1750937453672,-681.48,0.00018904,2]
[367827206,1750937453682,-460.0,0.00018904,2]
[367827207,1750937453691,-1451.19,0.00018904,2]
[367827208,1750937453703,-2357.2,0.00018904,2]
[367827209,1750937453714,-11175.271891,0.00018986,2]
[367827210,1750937453723,-151.0,0.00019,2]
[367827211,1750937453734,-2098.61804964,0.00019003,2]
[367827212,1750937453744,-2888.01036636,0.0001902,2]
[367827213,1750937453754,-1500.0,0.00019041,2]
[367827214,1750937453763,-1500.0,0.00019041,2]
[367827215,1750937453772,-1000.0,0.00019051,2]
[367827216,1750937453782,-1502.78026123,0.00019073,2]
[367827217,1750937453794,-1001.7024217,0.00019073,2]
[367827218,1750937453804,-418.87558484,0.00019078,2]
[367827219,1750937453813,-1500.0,0.00019117,2]
[367827220,1750937453824,-298.58513118,0.00019117,2]
[367827221,1750937453834,-1500.0,0.00019117,2]
[367827222,1750937453844,-1627.19226716,0.00019117,2]
[367827223,1750937453855,-500.0,0.00019177,2]
[367827224,1750937453865,-500.0,0.00019177,2]
[367827225,1750937453875,-399.66928241,0.00019177,2]
[367827226,1750937453887,-500.0,0.00019177,2]
[367827227,1750937453896,-500.0,0.00019177,2]
[367827228,1750937453905,-500.0,0.00019177,2]
[367827229,1750937453914,-393.9456505,0.00019177,2]
[367827230,1750937453923,-460.0,0.00019178,2]
[367827231,1750937453933,-460.0,0.00019178,2]
[367827232,1750937453942,-460.0,0.00019178,2]
[367827233,1750937453952,-460.0,0.00019178,2]
[367827234,1750937453962,-460.0,0.00019178,2]
[367827235,1750937453971,-460.0,0.00019178,2]
[367827236,1750937453981,-475.68,0.00019178,2]
[367827237,1750937453991,-167.56020435,0.00019178,2]
[367827238,1750937454003,-236.35,0.00019178,2]
[367827239,1750937454012,-799.04,0.00019178,2]
[367827240,1750937454023,-460.0,0.00019178,2]
[367827241,1750937454033,-460.0,0.00019178,2]
[367827242,1750937454042,-460.0,0.00019178,2]
[367827243,1750937454052,-460.0,0.00019178,2]
[367827244,1750937454062,-460.5,0.00019178,2]
[367827245,1750937454071,-514.6,0.00019178,2]
[367827246,1750937454081,-460.0,0.00019178,2]
[367827247,1750937454091,-460.0,0.00019178,2]
[367827248,1750937454100,-460.0,0.00019178,2]
[367827249,1750937454109,-460.0,0.00019178,2]
[367827250,1750937454119,-460.0,0.00019178,2]
[367827251,1750937454128,-371.62993064,0.00019178,2]
[367827252,1750937454138,-1825.69,0.00019178,2]
[367827253,1750937454148,-460.0,0.00019178,2]
[367827254,1750937454157,-634.71,0.00019178,2]
[367827255,1750937454167,-460.0,0.00019178,2]
[367827256,1750937454177,-460.0,0.00019178,2]
[367827257,1750937454187,-560.37,0.00019178,2]
[367827258,1750937454197,-460.0,0.00019178,2]
[367827259,1750937454207,-532.05,0.00019178,2]
[367827260,1750937454216,-853.49,0.00019178,2]
[367827261,1750937454225,-749.37,0.00019178,2]
[367827262,1750937454235,-750.66,0.00019178,2]
[367827263,1750937454245,-460.0,0.00019178,2]
[367827264,1750937454255,-493.63,0.00019178,2]
[367827265,1750937454265,-2230.64,0.00019178,2]
[367827266,1750937454274,-1483.5,0.00019178,2]
[367827267,1750937454284,-631.3,0.00019178,2]
[367827268,1750937454294,-555.27,0.00019178,2]
[367827269,1750937454304,-603.69,0.00019178,2]
[367827270,1750937454314,-1037.78,0.00019178,2]
[367827271,1750937454324,-480.66,0.00019178,2]
[367827272,1750937454335,-460.0,0.00019178,2]
[367827273,1750937454346,-525.89611994,0.00019178,2]
[367827274,1750937454356,-1376.23,0.00019178,2]
[367827275,1750937454367,-460.0,0.00019178,2]
[367827276,1750937454376,-1547.65,0.00019178,2]
[367827277,1750937454386,-1342.13,0.00019178,2]
[367827278,1750937454395,-460.0,0.00019178,2]
[367827279,1750937454404,-460.0,0.00019178,2]
[367827280,1750937454414,-460.0,0.00019178,2]
[367827281,1750937454423,-460.0,0.00019178,2]
[367827282,1750937454433,-666.66,0.00019178,2]
[367827283,1750937454443,-460.0,0.00019178,2]
[367827284,1750937454452,-460.0,0.00019178,2]
[367827285,1750937454462,-1051.88,0.00019178,2]
[367827286,1750937454472,-584.27,0.00019178,2]
[367827287,1750937454482,-1471.85,0.00019178,2]
[367827288,1750937454491,-1058.47,0.00019178,2]
[367827289,1750937454501,-3674.9,0.00019178,2]
[367827290,1750937454511,-460.0,0.00019178,2]
[367827291,1750937454521,-488.35,0.00019178,2]
[367827292,1750937454531,-460.0,0.00019178,2]
[367827293,1750937454541,-1781.52,0.00019178,2]
[367827294,1750937454551,-765.93,0.00019178,2]
[367827295,1750937454562,-1905.24,0.00019178,2]
[367827296,1750937454572,-1426.6,0.00019178,2]
[367827297,1750937454582,-460.0,0.00019178,2]
[367827298,1750937454592,-845.79,0.00019178,2]
[367827299,1750937454602,-552.93,0.00019178,2]
[367827300,1750937454611,-3344.72,0.00019178,2]
[367827301,1750937454621,-460.0,0.00019178,2]
[367827302,1750937454632,-460.0,0.00019178,2]
[367827303,1750937454642,-460.0,0.00019178,2]
[367827304,1750937454652,-460.0,0.00019178,2]
[367827305,1750937454662,-460.0,0.00019178,2]
[367827306,1750937454672,-725.47,0.00019178,2]
[367827307,1750937454681,-460.0,0.00019178,2]
[367827308,1750937454691,-681.48,0.00019178,2]
[367827309,1750937454701,-460.0,0.00019178,2]
[367827310,1750937454710,-1451.19,0.00019178,2]
[367827311,1750937454720,-2357.2,0.00019178,2]
[367827312,1750937454730,-385.554908,0.00019178,2]
[367827313,1750937454740,-29022.9130628,0.00019178,2]
[367827314,1750937454749,-153.0,0.0001926,2]
[367827315,1750937454759,-2098.61804964,0.00019279,2]
[367827316,1750937454769,-151.0,0.000193,2]
[367827317,1750937454778,-460.0,0.00019452,2]
[367827318,1750937454788,-460.0,0.00019452,2]
[367827319,1750937454797,-460.0,0.00019452,2]
[367827320,1750937454807,-460.0,0.00019452,2]
[367827321,1750937454817,-460.0,0.00019452,2]
[367827322,1750937454826,-460.0,0.00019452,2]
[367827323,1750937454836,-475.68,0.00019452,2]
[367827324,1750937454846,-799.04,0.00019452,2]
[367827325,1750937454856,-460.0,0.00019452,2]
[367827326,1750937454865,-460.0,0.00019452,2]
[367827327,1750937454875,-460.0,0.00019452,2]
[367827328,1750937454884,-460.0,0.00019452,2]
[367827329,1750937454894,-460.5,0.00019452,2]
[367827330,1750937454904,-514.6,0.00019452,2]
[367827331,1750937454914,-460.0,0.00019452,2]
[367827332,1750937454923,-460.0,0.00019452,2]
[367827333,1750937454933,-460.0,0.00019452,2]
[367827334,1750937454943,-460.0,0.00019452,2]
[367827335,1750937454952,-460.0,0.00019452,2]
[367827336,1750937454961,-1825.69,0.00019452,2]
[367827337,1750937454971,-460.0,0.00019452,2]
[367827338,1750937454981,-634.71,0.00019452,2]
[367827339,1750937454991,-460.0,0.00019452,2]
[367827340,1750937455003,-460.0,0.00019452,2]
[367827341,1750937455013,-560.37,0.00019452,2]
[367827342,1750937455023,-460.0,0.00019452,2]
[367827343,1750937455033,-532.05,0.00019452,2]
[367827344,1750937455042,-853.49,0.00019452,2]
[367827345,1750937455052,-749.37,0.00019452,2]
[367827346,1750937455062,-750.66,0.00019452,2]
[367827347,1750937455071,-460.0,0.00019452,2]
[367827348,1750937455082,-493.63,0.00019452,2]
[367827349,1750937455091,-2230.64,0.00019452,2]
[367827350,1750937455101,-1483.5,0.00019452,2]
[367827351,1750937455111,-631.3,0.00019452,2]
[367827352,1750937455121,-555.27,0.00019452,2]
[367827353,1750937455131,-603.69,0.00019452,2]
[367827354,1750937455140,-1037.78,0.00019452,2]
[367827355,1750937455150,-480.66,0.00019452,2]
[367827356,1750937455159,-460.0,0.00019452,2]
[367827357,1750937455169,-1376.23,0.00019452,2]
[367827358,1750937455178,-460.0,0.00019452,2]
[367827359,1750937455188,-1547.65,0.00019452,2]
[367827360,1750937455198,-1342.13,0.00019452,2]
[367827361,1750937455207,-460.0,0.00019452,2]
[367827362,1750937455217,-460.0,0.00019452,2]
[367827363,1750937455227,-460.0,0.00019452,2]
[367827364,1750937455237,-460.0,0.00019452,2]
[367827365,1750937455246,-666.66,0.00019452,2]
[367827366,1750937455256,-460.0,0.00019452,2]
[367827367,1750937455266,-460.0,0.00019452,2]
[367827368,1750937455276,-1051.88,0.00019452,2]
[367827369,1750937455287,-584.27,0.00019452,2]
[367827370,1750937455299,-1471.85,0.00019452,2]
[367827371,1750937455309,-1058.47,0.00019452,2]
[367827372,1750937455320,-3674.9,0.00019452,2]
[367827373,1750937455330,-460.0,0.00019452,2]
[367827374,1750937455340,-488.35,0.00019452,2]
[367827375,1750937455349,-460.0,0.00019452,2]
[367827376,1750937455359,-1781.52,0.00019452,2]
[367827377,1750937455370,-765.93,0.00019452,2]
[367827378,1750937455380,-1905.24,0.00019452,2]
[367827379,1750937455389,-1426.6,0.00019452,2]
[367827380,1750937455399,-460.0,0.00019452,2]
[367827381,1750937455409,-845.79,0.00019452,2]
[367827382,1750937455418,-552.93,0.00019452,2]
[367827383,1750937455428,-3344.72,0.00019452,2]
[367827384,1750937455438,-460.0,0.00019452,2]
[367827385,1750937455448,-460.0,0.00019452,2]
[367827386,1750937455458,-460.0,0.00019452,2]
[367827387,1750937455468,-460.0,0.00019452,2]
[367827388,1750937455478,-460.0,0.00019452,2]
[367827389,1750937455488,-725.47,0.00019452,2]
[367827390,1750937455498,-460.0,0.00019452,2]
[367827391,1750937455508,-681.48,0.00019452,2]
[367827392,1750937455518,-399.58324118,0.00019452,2]
[367827393,1750937455527,-1451.19,0.00019452,2]
[367827394,1750937455538,-2357.2,0.00019452,2]
[367827395,1750937455547,-2098.61804964,0.00019555,2]
[367827396,1750937455557,-1011.32697788,0.00019589,2]
[367827397,1750937455567,-2000.0,0.00019589,2]
[367827398,1750937455577,-82600.57617,0.00019589,2]
[367827399,1750937455586,-151.0,0.0001959,2]
[367827400,1750937455596,-207.4,0.0001959,2]
[367827401,1750937455606,-151.0,0.0001959,2]
[367827402,1750937455616,-151.0,0.0001959,2]
[367827403,1750937455627,-500.0,0.0001959,2]
[367827404,1750937455637,-5000.0,0.0001959,2]
[367827405,1750937455647,-151.0,0.0001959,2]
[367827406,1750937455657,-151.27597907,0.0001959,2]
[367827407,1750937455666,-151.0,0.0001959,2]